fUSD/lending_fUSD_20250606
["ID","MTS","AMOUNT","RATE_DAILY","PERIOD"]
[364776279,1749238267092,-8052.1,0.00027561,5]
[364776280,1749238267104,-480.0,0.00027561,5]
[364776281,1749238267114,-8052.1,0.00027726,5]
[364776282,1749238267123,-8052.1,0.0002789,5]
[364776283,1749238267132,-150.0,0.00027917,5]
[364776284,1749238267142,-200.0,0.00027945,5]
[364776285,1749238267151,-42.60234097,0.00028054,5]
[364776286,1749238267160,-996.25,0.00028054,5]
[364776287,1749238267170,-665.27,0.00028054,5]
[364776288,1749238267179,-1569.61,0.00028054,5]
[364776289,1749238267189,-480.0,0.00028054,5]
[364776290,1749238267198,-1000.0,0.00028054,5]
[364776291,1749238267207,-480.0,0.00028054,5]
[364776292,1749238267217,-528.51,0.00028054,5]
[364776293,1749238267226,-714.18,0.00028054,5]
[364776294,1749238267236,-675.52,0.00028054,5]
[364776295,1749238267245,-1429.09,0.00028054,5]
[364776296,1749238267255,-665.04,0.00028054,5]
[364776297,1749238267265,-151.0,0.00028054,7]
[364776298,1749238267274,-189.067661,0.00028054,7]
[364776299,1749238267284,-2692.59,0.00028054,5]
[364776300,1749238267294,-2650.03,0.00028054,5]
[364776301,1749238267303,-1407.53,0.00028054,5]
[364776302,1749238267312,-480.0,0.00028054,5]
[364776303,1749238267322,-1044.58,0.00028054,5]
[364776304,1749238267331,-189.067661,0.00028054,7]
[364776305,1749238267341,-179.508406,0.00028054,7]
[364776306,1749238267351,-1121.69,0.00028054,5]
[364776307,1749238267360,-550.06703284,0.00028054,5]
[364776308,1749238267370,-461.975126,0.00028054,7]
[364776309,1749238267380,-1259.89,0.00028054,5]
[364776310,1749238267390,-151.0,0.00028054,7]
[364776311,1749238267400,-179.508406,0.00028054,7]
[364776312,1749238267410,-1000.59,0.00028054,5]
[364776313,1749238267419,-461.975126,0.00028054,7]
[364776314,1749238267429,-682.93,0.00028054,5]
[364776315,1749238267440,-10449.09,0.00028054,5]
[364776316,1749238267449,-480.0,0.00028054,5]
[364776317,1749238267459,-2196.0,0.00028054,5]
[364776318,1749238267469,-2596.53,0.00028054,5]
[364776319,1749238267478,-2684.12,0.00028054,5]
[364776320,1749238267488,-480.0,0.00028054,5]
[364776321,1749238267498,-480.0,0.00028054,5]
[364776322,1749238267510,-1035.64,0.00028054,5]
[364776323,1749238267520,-1413.85,0.00028054,5]
[364776324,1749238267530,-269.254107,0.00028054,7]
[364776325,1749238267540,-1346.8,0.00028054,5]
[364776326,1749238267551,-1405.33,0.00028054,5]
[364776327,1749238267561,-789.6,0.00028054,5]
[364776328,1749238267570,-480.0,0.00028054,5]
[364776329,1749238267580,-269.254107,0.00028054,7]
[364776330,1749238267592,-151.0,0.00028054,7]
[364776331,1749238267602,-685.7,0.00028054,5]
[364776332,1749238267612,-887.66,0.00028054,5]
[364776333,1749238267622,-480.0,0.00028054,5]
[364776334,1749238267632,-1130.7,0.00028054,5]
[364776335,1749238267641,-480.0,0.00028054,5]
[364776336,1749238267650,-480.0,0.00028054,5]
[364776337,1749238267659,-2132.1,0.00028054,5]
[364776338,1749238267669,-480.0,0.00028054,5]
[364776339,1749238267679,-1647.92,0.00028054,5]
[364776340,1749238267690,-834.35,0.00028054,5]
[364776341,1749238267700,-4392.99,0.00028054,5]
[364776342,1749238267710,-3015.43,0.00028054,5]
[364776343,1749238267720,-480.0,0.00028054,5]
[364776344,1749238267730,-1470.46,0.00028054,5]
[364776345,1749238267741,-1546.73,0.00028054,5]
[364776346,1749238267752,-1479.99,0.00028054,5]
[364776347,1749238267767,-1186.47,0.00028054,5]
[364776348,1749238267776,-514.62,0.00028054,5]
[364776349,1749238267785,-480.0,0.00028054,5]
[364776350,1749238267795,-835.23,0.00028054,5]
[364776351,1749238267804,-480.0,0.00028054,5]
[364776352,1749238267819,-1102.69,0.00028054,5]
[364776353,1749238267829,-689.03,0.00028054,5]
[364776354,1749238267839,-1040.68,0.00028054,5]
[364776355,1749238267849,-995.31,0.00028054,5]
[364776356,1749238267859,-480.0,0.00028054,5]
[364776357,1749238267869,-523.71,0.00028054,5]
[364776358,1749238267879,-1046.65,0.00028054,5]
[364776359,1749238267889,-480.0,0.00028054,5]
[364776360,1749238267898,-480.0,0.00028054,5]
[364776361,1749238267908,-3516.83,0.00028054,5]
[364776362,1749238267920,-480.0,0.00028054,5]
[364776363,1749238267930,-480.0,0.00028054,5]
[364776364,1749238267940,-7192.4,0.00028054,5]
[364776365,1749238267950,-480.0,0.00028054,5]
[364776366,1749238267960,-1068.47,0.00028054,5]
[364776367,1749238267970,-843.7,0.00028054,5]
[364776368,1749238267979,-480.0,0.00028054,5]
[364776369,1749238267989,-1025.1,0.00028054,5]
[364776370,1749238267998,-579.69,0.00028054,5]
[364776371,1749238268008,-618.2,0.00028054,5]
[364776372,1749238268018,-606.91,0.00028054,5]
[364776373,1749238268029,-480.0,0.00028054,5]
[364776374,1749238268039,-7137.4,0.00028054,5]
[364776375,1749238268049,-480.0,0.00028054,5]
[364776376,1749238268059,-151.0,0.00028054,7]
[364776377,1749238268068,-151.0,0.00028054,7]
[364776378,1749238268078,-2026.65,0.00028054,5]
[364776379,1749238268089,-2994.18,0.00028054,5]
[364776380,1749238268099,-11496.53,0.00028054,5]
[364776381,1749238268108,-151.0,0.00028054,7]
[364776382,1749238268118,-280.069118,0.00028054,7]
[364776383,1749238268127,-1784.57,0.00028054,5]
[364776384,1749238268137,-514.45,0.00028054,5]
[364776385,1749238268147,-1232.611643,0.00028054,7]
[364776386,1749238268157,-480.0,0.00028054,5]
[364776387,1749238268168,-480.0,0.00028054,5]
[364776388,1749238268178,-480.0,0.00028054,5]
[364776389,1749238268190,-3152.9,0.00028054,5]
[364776390,1749238268200,-1232.611643,0.00028054,7]
[364776391,1749238268210,-1227.31,0.00028054,5]
[364776392,1749238268220,-480.0,0.00028054,5]
[364776393,1749238268230,-497.39,0.00028054,5]
[364776394,1749238268240,-480.0,0.00028054,5]
[364776395,1749238268249,-4337.15,0.00028054,5]
[364776396,1749238268259,-480.0,0.00028054,5]
[364776397,1749238268269,-1547.12,0.00028054,5]
[364776398,1749238268279,-480.0,0.00028054,5]
[364776399,1749238268289,-3302.16,0.00028054,5]
[364776400,1749238268299,-533.36,0.00028054,5]
[364776401,1749238268308,-189.938106,0.00028054,7]
[364776402,1749238268318,-747.92,0.00028054,5]
[364776403,1749238268328,-151.0,0.00028054,7]
[364776404,1749238268338,-1427.98,0.00028054,5]
[364776405,1749238268348,-572.16,0.00028054,5]
[364776406,1749238268358,-577.87,0.00028054,5]
[364776407,1749238268367,-480.0,0.00028054,5]
[364776408,1749238268377,-189.938106,0.00028054,7]
[364776409,1749238268386,-151.0,0.00028054,7]
[364776410,1749238268396,-154.149509,0.00028054,7]
[364776411,1749238268405,-1647.97,0.00028054,5]
[364776412,1749238268415,-480.0,0.00028054,5]
[364776413,1749238268426,-480.0,0.00028054,5]
[364776414,1749238268436,-972.75,0.00028054,5]
[364776415,1749238268445,-1458.85,0.00028054,5]
[364776416,1749238268455,-551.69,0.00028054,5]
[364776417,1749238268464,-480.0,0.00028054,5]
[364776418,1749238268474,-1271.48,0.00028054,5]
[364776419,1749238268484,-2558.54,0.00028054,5]
[364776420,1749238268578,-151.0,0.00028054,7]
[364776421,1749238268589,-744.59,0.00028054,5]
[364776422,1749238268599,-535.17,0.00028054,5]
[364776423,1749238268608,-1780.07,0.00028054,5]
[364776424,1749238268619,-825.48,0.00028054,5]
[364776425,1749238268629,-1087.45,0.00028054,5]
[364776426,1749238268638,-480.0,0.00028054,5]
[364776427,1749238268647,-3642.41,0.00028054,5]
[364776428,1749238268656,-602.35,0.00028054,5]
[364776429,1749238268667,-457.404501,0.00028054,5]
[364776430,1749238268676,-980.76,0.00028054,5]
[364776431,1749238268686,-2952.08,0.00028054,5]
[364776432,1749238268696,-1491.88,0.00028054,5]
[364776433,1749238268705,-244.20833865,0.00028054,5]
[364776434,1749238268714,-513.98,0.00028054,5]
[364776435,1749238268723,-545.79,0.00028054,5]
[364776436,1749238268732,-480.0,0.00028054,5]
[364776437,1749238268742,-480.0,0.00028054,5]
[364776438,1749238268751,-533.03,0.00028054,5]
[364776439,1749238268759,-1677.66,0.00028054,5]
[364776440,1749238268768,-480.0,0.00028054,5]
[364776441,1749238268778,-480.0,0.00028054,5]
[364776442,1749238268787,-4496.09,0.00028054,5]
[364776443,1749238268796,-1755.28,0.00028054,5]
[364776444,1749238268805,-1692.52,0.00028054,5]
[364776445,1749238268814,-662.984692,0.00028054,7]
[364776446,1749238268825,-1650.3,0.00028054,5]
[364776447,1749238268834,-662.984692,0.00028054,7]
[364776448,1749238268843,-835.24,0.00028054,5]
[364776449,1749238268852,-480.0,0.00028054,5]
[364776450,1749238268862,-480.0,0.00028054,2]
[364776451,1749238268871,-5267.72,0.00028054,5]
[364776452,1749238268880,-934.457951,0.00028054,5]
[364776453,1749238268889,-480.0,0.00028054,5]
[364776454,1749238268899,-480.0,0.00028054,5]
[364776455,1749238268907,-502.12,0.00028054,5]
[364776456,1749238268918,-729.42,0.00028054,5]
[364776457,1749238268927,-1800.89,0.00028054,5]
[364776458,1749238268936,-699.03,0.00028054,5]
[364776459,1749238268945,-498.83,0.00028054,5]
[364776460,1749238268955,-1536.39,0.00028054,5]
[364776461,1749238268964,-5553.8,0.00028054,5]
[364776462,1749238268974,-698.46,0.00028054,2]
[364776463,1749238268983,-480.0,0.00028054,5]
[364776464,1749238268993,-480.0,0.00028054,5]
[364776465,1749238269002,-900.05,0.00028054,5]
[364776466,1749238269013,-694.21,0.00028054,5]
[364776467,1749238269022,-2081.72,0.00028054,5]
[364776468,1749238269032,-480.0,0.00028054,5]
[364776469,1749238269042,-1295.96,0.00028054,5]
[364776470,1749238269052,-483.69,0.00028054,5]
[364776471,1749238269061,-484.44,0.00028054,5]
[364776472,1749238269071,-480.0,0.00028054,5]
[364776473,1749238269080,-10178.54,0.00028054,5]
[364776474,1749238269089,-480.0,0.00028054,5]
[364776475,1749238269098,-480.0,0.00028054,5]
[364776476,1749238269108,-2453.62,0.00028054,5]
[364776477,1749238269118,-8052.1,0.00028054,5]
[364776478,1749238269128,-787.0,0.00028054,5]
[364776479,1749238269137,-597.0,0.00028054,5]
[364776480,1749238269148,-150.0,0.00028058,2]
[364776481,1749238269157,-150.0,0.00028063,2]
[364776482,1749238269167,-150.0,0.00028067,2]
[364776483,1749238269176,-150.0,0.00028071,2]
[364776484,1749238269186,-150.0,0.00028076,2]
[364776485,1749238269195,-150.0,0.00028077,2]
[364776486,1749238269204,-787.0,0.00028082,5]
[364776487,1749238269214,-597.0,0.00028082,5]
[364776488,1749238269223,-150.0,0.00028082,2]
[364776489,1749238269232,-151.0,0.00028082,7]
[364776490,1749238269241,-151.0,0.00028082,7]
[364776491,1749238269251,-151.0,0.00028082,7]
[364776492,1749238269260,-150.0,0.00028092,2]
[364776493,1749238269270,-413.34,0.000281,2]
[364776494,1749238269279,-1000.0,0.000281,2]
[364776495,1749238269288,-1000.0,0.00028103,2]
[364776496,1749238269298,-150.0,0.00028105,2]
[364776497,1749238269308,-150.0,0.00028106,2]
[364776498,1749238269318,-150.0,0.00028108,2]
[364776499,1749238269327,-150.0,0.00028109,2]
[364776500,1749238269337,-189.067661,0.00028109,7]
[364776501,1749238269348,-189.067661,0.00028109,7]
[364776502,1749238269358,-179.508406,0.00028109,7]
[364776503,1749238269367,-461.975126,0.00028109,7]
[364776504,1749238269377,-151.0,0.00028109,7]
[364776505,1749238269387,-179.508406,0.00028109,7]
[364776506,1749238269397,-461.975126,0.00028109,7]
[364776507,1749238269408,-269.254107,0.00028109,7]
[364776508,1749238269418,-269.254107,0.00028109,7]
[364776509,1749238269429,-1232.611643,0.00028109,7]
[364776510,1749238269440,-1232.611643,0.00028109,7]
[364776511,1749238269450,-189.938106,0.00028109,7]
[364776512,1749238269460,-189.938106,0.00028109,7]
[364776513,1749238269470,-662.984692,0.00028109,7]
[364776514,1749238269479,-662.984692,0.00028109,7]
[364776515,1749238269489,-787.0,0.00028109,5]
[364776516,1749238269499,-597.0,0.00028109,5]
[364776517,1749238269511,-150.0,0.00028116,2]
[364776518,1749238269521,-341.7159634,0.00028119,2]
[364776519,1749238269530,-150.0,0.0002812,2]
[364776520,1749238269539,-1000.0,0.00028121,5]
[364776521,1749238269549,-150.0,0.00028131,2]
[364776522,1749238269558,-200.0,0.00028136,2]
[364776523,1749238269567,-787.0,0.00028137,5]
[364776524,1749238269576,-597.0,0.00028137,5]
[364776525,1749238269586,-150.0,0.00028139,2]
[364776526,1749238269595,-150.0,0.00028142,2]
[364776527,1749238269604,-382.49554745,0.00028145,2]
[364776528,1749238269613,-150.0,0.00028158,2]
[364776529,1749238269622,-150.0,0.00028162,2]
[364776530,1749238269632,-150.0,0.00028163,2]
[364776531,1749238269643,-787.0,0.00028164,5]
[364776532,1749238269652,-597.0,0.00028164,5]
[364776533,1749238269661,-153.945018,0.00028164,7]
[364776534,1749238269674,-948.51001956,0.0002817,2]
[364776535,1749238269683,-150.0,0.00028171,2]
[364776536,1749238269693,-150.0,0.00028178,2]
[364776537,1749238269702,-150.0,0.0002818,2]
[364776538,1749238269712,-787.0,0.00028191,5]
[364776539,1749238269721,-597.0,0.00028191,5]
[364776540,1749238269731,-151.0,0.00028196,7]
[364776541,1749238269740,-256.08438,0.00028196,7]
[364776542,1749238269750,-256.08438,0.00028196,7]
[364776543,1749238269759,-151.0,0.00028196,7]
[364776544,1749238269768,-741.477682,0.00028196,7]
[364776545,1749238269778,-741.477682,0.00028196,7]
[364776546,1749238269787,-1000.0,0.000282,2]
[364776547,1749238269797,-1000.0,0.000282,2]
[364776548,1749238269807,-1000.0,0.000282,2]
[364776549,1749238269817,-1000.0,0.000282,2]
[364776550,1749238269826,-1000.0,0.000282,2]
[364776551,1749238269836,-1000.0,0.000282,2]
[364776552,1749238269846,-376.0,0.000282,2]
[364776553,1749238269856,-768.0,0.000282,2]
[364776554,1749238269866,-150.0,0.00028211,2]
[364776555,1749238269876,-1204.54,0.00028218,5]
[364776556,1749238269886,-1204.54,0.00028218,5]
[364776557,1749238269896,-787.0,0.00028219,5]
[364776558,1749238269905,-597.0,0.00028219,5]
[364776559,1749238269916,-151.0,0.00028219,7]
[364776560,1749238269926,-151.0,0.00028219,7]
[364776561,1749238269935,-151.0,0.00028219,7]
[364776562,1749238269945,-151.0,0.00028219,7]
[364776563,1749238269955,-151.0,0.00028219,7]
[364776564,1749238269965,-151.0,0.00028219,7]
[364776565,1749238269975,-151.0,0.00028219,7]
[364776566,1749238269984,-151.0,0.00028219,7]
[364776567,1749238269998,-162.784764,0.00028219,7]
[364776568,1749238270008,-162.784764,0.00028219,7]
[364776569,1749238270017,-151.0,0.00028219,7]
[364776570,1749238270027,-151.0,0.00028219,7]
[364776571,1749238270037,-151.0,0.00028219,7]
[364776572,1749238270047,-383.455473,0.00028219,7]
[364776573,1749238270056,-383.455473,0.00028219,7]
[364776574,1749238270066,-151.0,0.00028219,7]
[364776575,1749238270075,-269.849036,0.00028219,7]
[364776576,1749238270085,-151.0,0.00028219,7]
[364776577,1749238270094,-151.0,0.00028219,7]
[364776578,1749238270104,-151.0,0.00028219,7]
[364776579,1749238270114,-151.0,0.00028219,7]
[364776580,1749238270124,-151.0,0.00028219,7]
[364776581,1749238270134,-151.0,0.00028219,7]
[364776582,1749238270144,-151.0,0.00028219,7]
[364776583,1749238270153,-214.22779,0.00028219,7]
[364776584,1749238270163,-151.0,0.00028219,7]
[364776585,1749238270176,-151.0,0.00028219,7]
[364776586,1749238270185,-151.0,0.00028219,7]
[364776587,1749238270195,-589.063325,0.00028219,7]
[364776588,1749238270205,-151.0,0.00028219,7]
[364776589,1749238270215,-151.0,0.00028219,7]
[364776590,1749238270224,-1027.574881,0.00028219,7]
[364776591,1749238270234,-1027.574881,0.00028219,7]
[364776592,1749238270244,-160.122674,0.00028219,7]
[364776593,1749238270255,-159.858197,0.00028219,7]
[364776594,1749238270266,-151.0,0.00028219,7]
[364776595,1749238270276,-151.0,0.00028219,7]
[364776596,1749238270286,-151.0,0.00028219,7]
[364776597,1749238270295,-151.0,0.00028219,7]
[364776598,1749238270305,-151.0,0.00028219,7]
[364776599,1749238270315,-151.0,0.00028219,7]
[364776600,1749238270325,-1184.242658,0.00028219,7]
[364776601,1749238270335,-1317.765658,0.00028219,5]
[364776602,1749238270345,-1184.242658,0.00028219,7]
[364776603,1749238270354,-1517.919858,0.00028219,5]
[364776604,1749238270364,-151.0,0.00028219,7]
[364776605,1749238270374,-151.0,0.00028219,7]
[364776606,1749238270384,-602.044555,0.00028219,7]
[364776607,1749238270395,-480.0,0.00028219,5]
[364776608,1749238270406,-602.044555,0.00028219,7]
[364776609,1749238270420,-261.054565,0.00028219,7]
[364776610,1749238270431,-151.0,0.00028219,7]
[364776611,1749238270441,-261.054565,0.00028219,7]
[364776612,1749238270451,-151.0,0.00028219,7]
[364776613,1749238270462,-151.0,0.00028219,7]
[364776614,1749238270472,-172.604956,0.00028219,7]
[364776615,1749238270482,-172.604956,0.00028219,7]
[364776616,1749238270493,-410.83783046,0.00028219,5]
[364776617,1749238270503,-480.0,0.00028219,5]
[364776618,1749238270516,-151.0,0.00028219,7]
[364776619,1749238270526,-151.0,0.00028219,7]
[364776620,1749238270536,-151.0,0.00028219,7]
[364776621,1749238270546,-256.662877,0.00028219,7]
[364776622,1749238270556,-151.0,0.00028219,7]
[364776623,1749238270569,-480.0,0.00028219,5]
[364776624,1749238270578,-151.0,0.00028219,7]
[364776625,1749238270589,-151.0,0.00028219,7]
[364776626,1749238270599,-151.0,0.00028219,7]
[364776627,1749238270609,-480.0,0.00028219,5]
[364776628,1749238270619,-176.288002,0.00028219,7]
[364776629,1749238270631,-176.288002,0.00028219,7]
[364776630,1749238270640,-266.14766212,0.00028219,5]
[364776631,1749238270650,-190.889101,0.00028219,7]
[364776632,1749238270661,-190.889101,0.00028219,7]
[364776633,1749238270673,-480.0,0.00028219,5]
[364776634,1749238270683,-450.0,0.00028219,2]
[364776635,1749238270693,-450.0,0.00028219,2]
[364776636,1749238270704,-400.398277,0.00028219,2]
[364776637,1749238270714,-480.0,0.00028219,5]
[364776638,1749238270724,-166.74833,0.00028219,7]
[364776639,1749238270734,-166.74833,0.00028219,7]
[364776640,1749238270744,-166.74833,0.00028219,7]
[364776641,1749238270754,-166.74833,0.00028219,7]
[364776642,1749238270764,-480.0,0.00028219,5]
[364776643,1749238270774,-290.092063,0.00028219,7]
[364776644,1749238270785,-290.092063,0.00028219,7]
[364776645,1749238270795,-290.092063,0.00028219,7]
[364776646,1749238270806,-290.092063,0.00028219,7]
[364776647,1749238270816,-151.0,0.00028219,7]
[364776648,1749238270826,-151.0,0.00028219,7]
[364776649,1749238270836,-151.0,0.00028219,7]
[364776650,1749238270847,-395.142899,0.00028219,7]
[364776651,1749238270858,-395.142899,0.00028219,7]
[364776652,1749238270868,-395.142899,0.00028219,7]
[364776653,1749238270878,-395.142899,0.00028219,7]
[364776654,1749238270888,-488.54,0.00028219,5]
[364776655,1749238270898,-256.08438,0.00028219,7]
[364776656,1749238270908,-256.08438,0.00028219,7]
[364776657,1749238270920,-480.0,0.00028219,5]
[364776658,1749238270934,-151.0,0.00028219,7]
[364776659,1749238270950,-151.0,0.00028219,7]
[364776660,1749238270963,-594.44,0.00028219,5]
[364776661,1749238270975,-1080.27,0.00028219,5]
[364776662,1749238270989,-487.01,0.00028219,5]
[364776663,1749238271003,-480.0,0.00028219,5]
[364776664,1749238271017,-279.90584,0.00028219,7]
[364776665,1749238271031,-480.0,0.00028219,5]
[364776666,1749238271044,-1121.24,0.00028219,5]
[364776667,1749238271055,-965.99,0.00028219,5]
[364776668,1749238271069,-151.0,0.00028219,7]
[364776669,1749238271082,-151.0,0.00028219,7]
[364776670,1749238271097,-480.0,0.00028219,5]
[364776671,1749238271110,-480.0,0.00028219,5]
[364776672,1749238271125,-634.69,0.00028219,5]
[364776673,1749238271139,-164.369548,0.00028219,5]
[364776674,1749238271152,-657.28,0.00028219,5]
[364776675,1749238271168,-480.0,0.00028219,5]
[364776676,1749238271182,-1036.73,0.00028219,5]
[364776677,1749238271196,-700.4,0.00028219,5]
[364776678,1749238271208,-522.03,0.00028219,5]
[364776679,1749238271222,-480.0,0.00028219,5]
[364776680,1749238271235,-212.153478,0.00028219,7]
[364776681,1749238271248,-480.0,0.00028219,5]
[364776682,1749238271261,-600.0,0.00028219,30]
[364776683,1749238271273,-772.01,0.00028219,5]
[364776684,1749238271285,-480.0,0.00028219,5]
[364776685,1749238271296,-480.0,0.00028219,5]
[364776686,1749238271307,-588.08,0.00028219,5]
[364776687,1749238271322,-510.66,0.00028219,5]
[364776688,1749238271336,-425.41,0.00028219,5]
[364776689,1749238271350,-151.0,0.00028219,7]
[364776690,1749238271360,-480.0,0.00028219,5]
[364776691,1749238271372,-480.0,0.00028219,5]
[364776692,1749238271387,-776.42,0.00028219,5]
[364776693,1749238271399,-570.13,0.00028219,5]
[364776694,1749238271410,-566.75,0.00028219,5]
[364776695,1749238271422,-891.4,0.00028219,5]
[364776696,1749238271433,-480.0,0.00028219,5]
[364776697,1749238271445,-851.49,0.00028219,5]
[364776698,1749238271456,-741.477682,0.00028219,7]
[364776699,1749238271468,-652.79,0.00028219,5]
[364776700,1749238271479,-480.0,0.00028219,5]
[364776701,1749238271491,-741.477682,0.00028219,7]
[364776702,1749238271503,-365.80959777,0.00028219,5]
[364776703,1749238271519,-151.0,0.00028219,7]
[364776704,1749238271530,-480.0,0.00028219,5]
[364776705,1749238271542,-151.0,0.00028219,7]
[364776706,1749238271555,-875.61,0.00028219,5]
[364776707,1749238271566,-533.65,0.00028219,5]
[364776708,1749238271581,-982.9,0.00028219,5]
[364776709,1749238271592,-480.0,0.00028219,5]
[364776710,1749238271604,-480.0,0.00028219,5]
[364776711,1749238271616,-724.05,0.00028219,5]
[364776712,1749238271627,-637.08,0.00028219,5]
[364776713,1749238271638,-511.37,0.00028219,5]
[364776714,1749238271650,-623.28,0.00028219,5]
[364776715,1749238271661,-480.0,0.00028219,5]
[364776716,1749238271675,-988.07,0.00028219,5]
[364776717,1749238271687,-666.13,0.00028219,5]
[364776718,1749238271699,-151.0,0.00028219,7]
[364776719,1749238271711,-480.0,0.00028219,5]
[364776720,1749238271722,-151.0,0.00028219,7]
[364776721,1749238271734,-480.0,0.00028219,5]
[364776722,1749238271746,-480.0,0.00028219,5]
[364776723,1749238271758,-956.4,0.00028219,5]
[364776724,1749238271769,-702.51,0.00028219,5]
[364776725,1749238271782,-480.0,0.00028219,5]
[364776726,1749238271794,-480.0,0.00028219,5]
[364776727,1749238271805,-525.04,0.00028219,5]
[364776728,1749238271817,-545.11,0.00028219,5]
[364776729,1749238271829,-480.0,0.00028219,5]
[364776730,1749238271841,-480.0,0.00028219,5]
[364776731,1749238271853,-480.0,0.00028219,5]
[364776732,1749238271865,-548.91,0.00028219,5]
[364776733,1749238271876,-726.22,0.00028219,5]
[364776734,1749238271887,-1492.05,0.00028219,5]
[364776735,1749238271899,-480.0,0.00028219,5]
[364776736,1749238271910,-151.0,0.00028219,7]
[364776737,1749238271923,-151.0,0.00028219,7]
[364776738,1749238271934,-747.69,0.00028219,5]
[364776739,1749238271946,-534.21,0.00028219,5]
[364776740,1749238271958,-317.999202,0.00028219,7]
[364776741,1749238271969,-480.0,0.00028219,5]
[364776742,1749238271981,-279.765778,0.00028219,7]
[364776743,1749238271993,-317.999202,0.00028219,7]
[364776744,1749238272004,-480.0,0.00028219,5]
[364776745,1749238272015,-317.999202,0.00028219,7]
[364776746,1749238272029,-813.04,0.00028219,5]
[364776747,1749238272040,-317.999202,0.00028219,7]
[364776748,1749238272051,-1118.221366,0.00028219,7]
[364776749,1749238272062,-1118.221366,0.00028219,7]
[364776750,1749238272073,-709.62,0.00028219,5]
[364776751,1749238272085,-2345.629707,0.00028219,7]
[364776752,1749238272096,-2345.629707,0.00028219,7]
[364776753,1749238272107,-1118.221366,0.00028219,7]
[364776754,1749238272119,-1118.221366,0.00028219,7]
[364776755,1749238272132,-2345.629707,0.00028219,7]
[364776756,1749238272143,-2345.629707,0.00028219,7]
[364776757,1749238272155,-480.0,0.00028219,5]
[364776758,1749238272167,-784.75,0.00028219,5]
[364776759,1749238272179,-769.75,0.00028219,5]
[364776760,1749238272191,-151.0,0.00028219,7]
[364776761,1749238272202,-151.0,0.00028219,7]
[364776762,1749238272213,-480.0,0.00028219,5]
[364776763,1749238272224,-1609.82,0.00028219,5]
[364776764,1749238272236,-1327.01,0.00028219,5]
[364776765,1749238272247,-884.97,0.00028219,5]
[364776766,1749238272260,-624.94828538,0.00028219,5]
[364776767,1749238272272,-480.0,0.00028219,5]
[364776768,1749238272283,-556.78,0.00028219,5]
[364776769,1749238272294,-151.0,0.00028219,7]
[364776770,1749238272306,-480.0,0.00028219,5]
[364776771,1749238272317,-151.0,0.00028219,7]
[364776772,1749238272329,-151.0,0.00028219,7]
[364776773,1749238272341,-837.78,0.00028219,5]
[364776774,1749238272353,-233.095165,0.00028219,7]
[364776775,1749238272364,-233.095165,0.00028219,7]
[364776776,1749238272376,-722.94,0.00028219,5]
[364776777,1749238272388,-233.095165,0.00028219,7]
[364776778,1749238272400,-233.095165,0.00028219,7]